[Event "*** Titled Tuesday Blitz"]
[Site "Chess.com"]
[Date "2021.02.02"]
[Round "11"]
[White "CheckThis4"]
[Black "Orest_Vovk"]
[Result "0-1"]
[WhiteElo "2558"]
[BlackElo "2478"]
[TimeControl "180+1"]
[EndTime "12:08:25 PST"]
[Termination "Orest_Vovk won by checkmate"]

1. d4 {[%clk 0:03:00.9]} 1... e6 {[%clk 0:02:54.6]} 2. e4 {[%clk 0:02:58.7]}
2... d5 {[%clk 0:02:51.9]} 3. Nc3 {[%clk 0:02:58.8]} 3... dxe4 {[%clk
0:02:45.6]} 4. Nxe4 {[%clk 0:02:58.4]} 4... Nd7 {[%clk 0:02:46.5]} 5. Nf3 {[%clk
0:02:57.3]} 5... Ngf6 {[%clk 0:02:46.7]} 6. Nxf6+ {[%clk 0:02:51.4]} 6... Nxf6
{[%clk 0:02:41.9]} 7. c3 {[%clk 0:02:49.7]} 7... c5 {[%clk 0:02:40.9]} 8. Ne5
{[%clk 0:02:45.7]} 8... cxd4 {[%clk 0:02:19.9]} 9. Bb5+ {[%clk 0:02:35]} 9...
Nd7 {[%clk 0:02:18.8]} 10. Qxd4 {[%clk 0:02:27.9]} 10... a6 {[%clk 0:02:18.3]}
11. Bxd7+ {[%clk 0:01:49.3]} 11... Bxd7 {[%clk 0:02:16.5]} 12. Be3 {[%clk
0:01:32.2]} 12... Bb5 {[%clk 0:02:09.5]} 13. Qf4 {[%clk 0:01:30.3]} 13... Qf6
{[%clk 0:02:04.7]} 14. O-O-O {[%clk 0:01:24.8]} 14... Qxf4 {[%clk 0:02:02.6]}
15. Bxf4 {[%clk 0:01:25.7]} 15... Bc5 {[%clk 0:01:55.5]} 16. c4 {[%clk 0:01:23]}
16... Ba4 {[%clk 0:01:46]} 17. b3 {[%clk 0:01:21]} 17... Bc6 {[%clk 0:01:45.7]}
18. Nxc6 {[%clk 0:01:20.6]} 18... bxc6 {[%clk 0:01:46.6]} 19. f3 {[%clk
0:01:09.5]} 19... Ke7 {[%clk 0:01:46.1]} 20. Kc2 {[%clk 0:01:09.5]} 20... Rhd8
{[%clk 0:01:45]} 21. h4 {[%clk 0:01:08.7]} 21... a5 {[%clk 0:01:33.7]} 22. Rxd8
{[%clk 0:00:49.6]} 22... Rxd8 {[%clk 0:01:32.3]} 23. h5 {[%clk 0:00:48.2]} 23...
Ra8 {[%clk 0:01:27.9]} 24. a4 {[%clk 0:00:43.8]} 24... Bb4 {[%clk 0:01:22.7]}
25. h6 {[%clk 0:00:37.5]} 25... g6 {[%clk 0:01:21.3]} 26. Rd1 {[%clk 0:00:37]}
26... f6 {[%clk 0:01:10.6]} 27. Bc7 {[%clk 0:00:34.2]} 27... Rc8 {[%clk
0:01:00.5]} 28. Bb6 {[%clk 0:00:33.7]} 28... c5 {[%clk 0:00:54]} 29. g4 {[%clk
0:00:31.9]} 29... e5 {[%clk 0:00:51.6]} 30. Rd5 {[%clk 0:00:29.9]} 30... Ke6
{[%clk 0:00:39.3]} 31. Kd3 {[%clk 0:00:26.2]} 31... f5 {[%clk 0:00:37.7]} 32. g5
{[%clk 0:00:23.7]} 32... Rc6 {[%clk 0:00:31.3]} 33. Bd8 {[%clk 0:00:22]} 33...
Rd6 {[%clk 0:00:31.4]} 34. Rxd6+ {[%clk 0:00:20.7]} 34... Kxd6 {[%clk
0:00:31.6]} 35. Bf6 {[%clk 0:00:21.2]} 35... Ke6 {[%clk 0:00:29.4]} 36. Ke3
{[%clk 0:00:20.9]} 36... Ba3 {[%clk 0:00:28.7]} 37. Kd3 {[%clk 0:00:19.2]} 37...
Bc1 {[%clk 0:00:27.5]} 38. Bd8 {[%clk 0:00:16.7]} 38... Kd7 {[%clk 0:00:25]} 39.
Bxa5 {[%clk 0:00:16.4]} 39... Bxg5 {[%clk 0:00:24.2]} 40. Bc3 {[%clk 0:00:13.4]}
40... Kd6 {[%clk 0:00:18.4]} 41. a5 {[%clk 0:00:13.8]} 41... Bf6 {[%clk
0:00:14.7]} 42. f4 {[%clk 0:00:13.3]} 42... e4+ {[%clk 0:00:14.5]} 43. Kd2
{[%clk 0:00:13.7]} 43... Bh4 {[%clk 0:00:08.6]} 44. a6 {[%clk 0:00:12.4]} 44...
Kc6 {[%clk 0:00:08.9]} 45. Ba5 {[%clk 0:00:10.5]} 45... Bg3 {[%clk 0:00:08.6]}
46. Ke3 {[%clk 0:00:10.8]} 46... Bh4 {[%clk 0:00:07.4]} 47. Ke2 {[%clk 0:00:10]}
47... Be7 {[%clk 0:00:07.3]} 48. Ke3 {[%clk 0:00:10]} 48... Bf8 {[%clk
0:00:07.5]} 49. Bd8 {[%clk 0:00:10]} 49... Bxh6 {[%clk 0:00:06.7]} 50. Bf6
{[%clk 0:00:09.2]} 50... Bf8 {[%clk 0:00:06.7]} 51. Kd2 {[%clk 0:00:07.4]} 51...
Kb6 {[%clk 0:00:06.9]} 52. Kc3 {[%clk 0:00:05.2]} 52... Kxa6 {[%clk 0:00:06.8]}
53. b4 {[%clk 0:00:05.6]} 53... cxb4+ {[%clk 0:00:06.7]} 54. Kb3 {[%clk
0:00:06.5]} 54... Kb6 {[%clk 0:00:06.6]} 55. Bd4+ {[%clk 0:00:06.2]} 55... Bc5
{[%clk 0:00:06.9]} 56. Bf6 {[%clk 0:00:06.4]} 56... e3 {[%clk 0:00:07.3]} 57.
Bh4 {[%clk 0:00:07.3]} 57... e2 {[%clk 0:00:07.2]} 58. Kc2 {[%clk 0:00:07.1]}
58... Ka5 {[%clk 0:00:07.1]} 59. Kd3 {[%clk 0:00:07.3]} 59... b3 {[%clk
0:00:07.5]} 60. Kc3 {[%clk 0:00:06]} 60... Ka4 {[%clk 0:00:07.8]} 61. Kb2 {[%clk
0:00:04.6]} 61... Ba3+ {[%clk 0:00:08.1]} 62. Kc3 {[%clk 0:00:04]} 62... Bb4+
{[%clk 0:00:09]} 63. Kb2 {[%clk 0:00:04.1]} 63... e1=Q {[%clk 0:00:09.7]} 64.
Bxe1 {[%clk 0:00:03.2]} 64... Bxe1 {[%clk 0:00:10.6]} 65. c5 {[%clk 0:00:03.7]}
65... Bg3 {[%clk 0:00:10.6]} 66. c6 {[%clk 0:00:04.6]} 66... Bxf4 {[%clk
0:00:10.7]} 67. Kb1 {[%clk 0:00:04.2]} 67... Bc7 {[%clk 0:00:10.5]} 68. Kb2
{[%clk 0:00:05.1]} 68... h5 {[%clk 0:00:10.8]} 69. Kc3 {[%clk 0:00:06]} 69... h4
{[%clk 0:00:11.4]} 70. Kd3 {[%clk 0:00:06.3]} 70... h3 {[%clk 0:00:12.3]} 71.
Ke3 {[%clk 0:00:07.2]} 71... h2 {[%clk 0:00:13.2]} 72. Kf2 {[%clk 0:00:07.8]}
72... h1=Q {[%clk 0:00:13.5]} 73. Ke2 {[%clk 0:00:07.5]} 73... Qd5 {[%clk
0:00:12.9]} 74. Ke3 {[%clk 0:00:07.6]} 74... g5 {[%clk 0:00:13.3]} 75. Kf2
{[%clk 0:00:07.7]} 75... Qe4 {[%clk 0:00:13.4]} 76. Kg1 {[%clk 0:00:07.7]} 76...
Qe2 {[%clk 0:00:12.1]} 77. Kh1 {[%clk 0:00:07.5]} 77... Qh2# {[%clk 0:00:11.9]}
0-1

[Event "*** Titled Tuesday Blitz"]
[Site "Chess.com"]
[Date "2021.02.02"]
[Round "11"]
[White "Loy_Konstantin"]
[Black "scarabee43"]
[Result "0-1"]
[WhiteElo "2377"]
[BlackElo "2567"]
[TimeControl "180+1"]
[EndTime "12:08:27 PST"]
[Termination "scarabee43 won on time"]

1. e4 {[%clk 0:03:00.9]} 1... c5 {[%clk 0:02:59.6]} 2. Nf3 {[%clk 0:03:00.7]}
2... e6 {[%clk 0:03:00]} 3. d3 {[%clk 0:03:01]} 3... d5 {[%clk 0:02:59.4]} 4.
Nbd2 {[%clk 0:02:59.8]} 4... Nc6 {[%clk 0:02:58.3]} 5. g3 {[%clk 0:03:00.2]}
5... Nf6 {[%clk 0:02:58.5]} 6. Bg2 {[%clk 0:03:00.7]} 6... Be7 {[%clk
0:02:58.1]} 7. O-O {[%clk 0:03:01.2]} 7... O-O {[%clk 0:02:58.5]} 8. Re1 {[%clk
0:03:01.7]} 8... Qc7 {[%clk 0:02:54.9]} 9. Nf1 {[%clk 0:02:55.5]} 9... dxe4
{[%clk 0:02:50.2]} 10. dxe4 {[%clk 0:02:55.4]} 10... Rd8 {[%clk 0:02:50.8]} 11.
Qe2 {[%clk 0:02:55.4]} 11... e5 {[%clk 0:02:50.3]} 12. c3 {[%clk 0:02:55.3]}
12... b6 {[%clk 0:02:42.5]} 13. Bg5 {[%clk 0:02:54.7]} 13... a5 {[%clk
0:02:41.9]} 14. Bxf6 {[%clk 0:02:53.7]} 14... Bxf6 {[%clk 0:02:41.2]} 15. Rad1
{[%clk 0:02:51.8]} 15... Ba6 {[%clk 0:02:39.6]} 16. Qc2 {[%clk 0:02:51.6]} 16...
Rd7 {[%clk 0:02:27.5]} 17. Ne3 {[%clk 0:02:46.2]} 17... Ne7 {[%clk 0:02:23.5]}
18. Bh3 {[%clk 0:02:39.4]} 18... Rxd1 {[%clk 0:02:21.9]} 19. Rxd1 {[%clk
0:02:39.1]} 19... Rd8 {[%clk 0:02:22.1]} 20. Bf1 {[%clk 0:02:38.6]} 20... Bb7
{[%clk 0:02:20.1]} 21. Bc4 {[%clk 0:02:23.9]} 21... Rxd1+ {[%clk 0:02:07.4]} 22.
Nxd1 {[%clk 0:02:23.1]} 22... Qc6 {[%clk 0:02:04]} 23. Nd2 {[%clk 0:02:08.5]}
23... b5 {[%clk 0:01:59.7]} 24. Be2 {[%clk 0:02:01]} 24... Bg5 {[%clk
0:01:53.2]} 25. Bf3 {[%clk 0:02:00.7]} 25... Qd6 {[%clk 0:01:46.9]} 26. Nf1
{[%clk 0:01:57.3]} 26... c4 {[%clk 0:01:35.7]} 27. Nde3 {[%clk 0:01:28.1]} 27...
a4 {[%clk 0:01:32.9]} 28. b3 {[%clk 0:01:17.6]} 28... axb3 {[%clk 0:01:31.1]}
29. axb3 {[%clk 0:01:17.7]} 29... cxb3 {[%clk 0:01:29]} 30. Qxb3 {[%clk
0:01:17.3]} 30... Qd3 {[%clk 0:01:20.9]} 31. Qc2 {[%clk 0:00:56.1]} 31... Qd7
{[%clk 0:01:17.3]} 32. h4 {[%clk 0:00:47]} 32... Bf6 {[%clk 0:01:08.7]} 33. Qd2
{[%clk 0:00:43.4]} 33... Qxd2 {[%clk 0:01:00]} 34. Nxd2 {[%clk 0:00:44.3]} 34...
g6 {[%clk 0:00:58.5]} 35. Be2 {[%clk 0:00:44.2]} 35... Bc6 {[%clk 0:00:56.3]}
36. f3 {[%clk 0:00:43.6]} 36... Kf8 {[%clk 0:00:51.1]} 37. Nc2 {[%clk
0:00:39.8]} 37... Nc8 {[%clk 0:00:41.7]} 38. Kf2 {[%clk 0:00:31.7]} 38... Nd6
{[%clk 0:00:40.8]} 39. Nb3 {[%clk 0:00:25.7]} 39... Bd8 {[%clk 0:00:40.3]} 40.
Nb4 {[%clk 0:00:25.4]} 40... Bb6+ {[%clk 0:00:39.3]} 41. Kg2 {[%clk 0:00:25.4]}
41... Bb7 {[%clk 0:00:35.3]} 42. Nc1 {[%clk 0:00:22]} 42... Be3 {[%clk
0:00:34.1]} 43. Ncd3 {[%clk 0:00:21.5]} 43... f6 {[%clk 0:00:30.4]} 44. Ne1
{[%clk 0:00:19.5]} 44... Bd2 {[%clk 0:00:29.9]} 45. Ned3 {[%clk 0:00:17.2]}
45... Bxc3 {[%clk 0:00:30]} 46. Kf1 {[%clk 0:00:17.2]} 46... f5 {[%clk 0:00:28]}
47. Na2 {[%clk 0:00:15]} 47... Bd4 {[%clk 0:00:25.9]} 48. exf5 {[%clk
0:00:13.9]} 48... Nxf5 {[%clk 0:00:25.3]} 49. Kg2 {[%clk 0:00:11.6]} 49... Ne3+
{[%clk 0:00:23.2]} 50. Kh3 {[%clk 0:00:10]} 50... Bc8+ {[%clk 0:00:21.9]} 51. g4
{[%clk 0:00:09.6]} 51... Ke7 {[%clk 0:00:19.4]} 52. Ndb4 {[%clk 0:00:09.4]}
52... Kd6 {[%clk 0:00:19.7]} 53. Bxb5 {[%clk 0:00:08.7]} 53... e4 {[%clk
0:00:19.6]} 54. fxe4 {[%clk 0:00:07.4]} 54... Nxg4 {[%clk 0:00:19.4]} 55. Kg3
{[%clk 0:00:07]} 55... Be5+ {[%clk 0:00:19]} 56. Kf3 {[%clk 0:00:07.3]} 56...
Nf6 {[%clk 0:00:18.6]} 57. Bc4 {[%clk 0:00:07.1]} 57... Kc5 {[%clk 0:00:17.9]}
58. Bf7 {[%clk 0:00:06.9]} 58... Bg4+ {[%clk 0:00:17.4]} 59. Kg2 {[%clk
0:00:06.3]} 59... Nxe4 {[%clk 0:00:16.8]} 60. Nc2 {[%clk 0:00:05.3]} 60... Bd1
{[%clk 0:00:15.3]} 61. Nab4 {[%clk 0:00:04.7]} 61... Bc3 {[%clk 0:00:14.7]} 62.
Nd3+ {[%clk 0:00:04.1]} 62... Kd6 {[%clk 0:00:14.3]} 63. Nce1 {[%clk 0:00:04.1]}
63... Be2 {[%clk 0:00:14]} 64. Kh3 {[%clk 0:00:03.2]} 64... Nf6 {[%clk
0:00:10.8]} 65. Bc4 {[%clk 0:00:03.5]} 65... Ke7 {[%clk 0:00:10.1]} 66. Kg2
{[%clk 0:00:03.9]} 66... Bxe1 {[%clk 0:00:10.3]} 67. Nxe1 {[%clk 0:00:02.9]}
67... Bxc4 {[%clk 0:00:10.8]} 68. Nf3 {[%clk 0:00:03.5]} 68... Ke6 {[%clk
0:00:11.3]} 69. Ng5+ {[%clk 0:00:03.7]} 69... Kf5 {[%clk 0:00:11.7]} 70. Nf3
{[%clk 0:00:03.6]} 70... Bd5 {[%clk 0:00:10.9]} 71. Kg3 {[%clk 0:00:03.4]} 71...
Bxf3 {[%clk 0:00:11.6]} 72. Kxf3 {[%clk 0:00:04.3]} 72... h5 {[%clk 0:00:12.2]}
73. Kg3 {[%clk 0:00:04.2]} 73... Ke4 {[%clk 0:00:12.8]} 74. Kh3 {[%clk
0:00:04.1]} 74... Kf4 {[%clk 0:00:13.5]} 0-1

[Event "*** Titled Tuesday Blitz"]
[Site "Chess.com"]
[Date "2021.02.02"]
[Round "11"]
[White "Balla_Tamas"]
[Black "SlavenPastar"]
[Result "1/2-1/2"]
[WhiteElo "2499"]
[BlackElo "2624"]
[TimeControl "180+1"]
[EndTime "12:08:36 PST"]
[Termination "Game drawn by repetition"]

1. d4 {[%clk 0:03:00.9]} 1... b6 {[%clk 0:02:59.7]} 2. e4 {[%clk 0:02:59.9]}
2... Bb7 {[%clk 0:02:59.7]} 3. Bd3 {[%clk 0:02:59.2]} 3... Nf6 {[%clk
0:03:00.2]} 4. Qe2 {[%clk 0:02:58.6]} 4... e6 {[%clk 0:03:00.5]} 5. Nf3 {[%clk
0:02:57.8]} 5... d5 {[%clk 0:03:00.9]} 6. e5 {[%clk 0:02:57.9]} 6... Ne4 {[%clk
0:03:01.2]} 7. Nbd2 {[%clk 0:02:58.2]} 7... Nxd2 {[%clk 0:02:59.6]} 8. Bxd2
{[%clk 0:02:57.8]} 8... c5 {[%clk 0:03:00.2]} 9. c3 {[%clk 0:02:57.7]} 9... Be7
{[%clk 0:03:00.7]} 10. O-O {[%clk 0:02:56.1]} 10... a5 {[%clk 0:03:01.1]} 11.
Rfd1 {[%clk 0:02:46.3]} 11... Ba6 {[%clk 0:02:58.5]} 12. c4 {[%clk 0:02:41.6]}
12... cxd4 {[%clk 0:02:53.4]} 13. cxd5 {[%clk 0:02:38.7]} 13... Qxd5 {[%clk
0:02:45.9]} 14. Bxa6 {[%clk 0:02:36.8]} 14... Nxa6 {[%clk 0:02:44.9]} 15. Be3
{[%clk 0:02:15.3]} 15... O-O {[%clk 0:02:36.6]} 16. Rxd4 {[%clk 0:02:14.4]}
16... Qb7 {[%clk 0:02:35.8]} 17. Rad1 {[%clk 0:02:12.7]} 17... Nc5 {[%clk
0:02:21.5]} 18. Qb5 {[%clk 0:02:06.6]} 18... h6 {[%clk 0:02:13.9]} 19. h3 {[%clk
0:02:05.7]} 19... Qa6 {[%clk 0:01:59.8]} 20. Qxa6 {[%clk 0:01:59.7]} 20... Rxa6
{[%clk 0:02:00.7]} 21. Rc4 {[%clk 0:01:54.5]} 21... Raa8 {[%clk 0:01:57.2]} 22.
a3 {[%clk 0:01:42.6]} 22... Rfd8 {[%clk 0:01:45.8]} 23. Rxd8+ {[%clk 0:01:41.1]}
23... Rxd8 {[%clk 0:01:46.7]} 24. b4 {[%clk 0:01:41.4]} 24... axb4 {[%clk
0:01:38.7]} 25. axb4 {[%clk 0:01:41.4]} 25... Na4 {[%clk 0:01:17.5]} 26. Nd4
{[%clk 0:01:33.8]} 26... Rd5 {[%clk 0:00:55.6]} 27. f4 {[%clk 0:01:26.6]} 27...
b5 {[%clk 0:00:47.2]} 28. Rc8+ {[%clk 0:01:23.2]} 28... Kh7 {[%clk 0:00:46]} 29.
Nc6 {[%clk 0:01:17.9]} 29... Rd7 {[%clk 0:00:38.1]} 30. Rb8 {[%clk 0:01:03.7]}
30... Nc3 {[%clk 0:00:37.2]} 31. Nxe7 {[%clk 0:00:34.8]} 31... Rxe7 {[%clk
0:00:36.1]} 32. Bd2 {[%clk 0:00:35.1]} 32... Ne4 {[%clk 0:00:26.5]} 33. Be1
{[%clk 0:00:35.3]} 33... Rd7 {[%clk 0:00:24]} 34. Kf1 {[%clk 0:00:27.3]} 34...
Rd1 {[%clk 0:00:24.1]} 35. Ke2 {[%clk 0:00:26.9]} 35... Rb1 {[%clk 0:00:16.9]}
36. Rxb5 {[%clk 0:00:25.8]} 36... Rb2+ {[%clk 0:00:17.3]} 37. Kf1 {[%clk
0:00:25.2]} 37... Rb1 {[%clk 0:00:15.3]} 38. Ke2 {[%clk 0:00:25.3]} 38... Kg6
{[%clk 0:00:14.9]} 39. g4 {[%clk 0:00:24]} 39... h5 {[%clk 0:00:13.8]} 40. Rb7
{[%clk 0:00:23.4]} 40... hxg4 {[%clk 0:00:13.3]} 41. hxg4 {[%clk 0:00:23.5]}
41... Rb2+ {[%clk 0:00:13]} 42. Kd3 {[%clk 0:00:22.5]} 42... Rb1 {[%clk
0:00:12.9]} 43. Kxe4 {[%clk 0:00:20.7]} 43... Rxe1+ {[%clk 0:00:12.6]} 44. Kf3
{[%clk 0:00:21.2]} 44... Rb1 {[%clk 0:00:12.4]} 45. b5 {[%clk 0:00:19.9]} 45...
Rb4 {[%clk 0:00:11.2]} 46. b6 {[%clk 0:00:19.3]} 46... f6 {[%clk 0:00:09.4]} 47.
exf6 {[%clk 0:00:18.1]} 47... gxf6 {[%clk 0:00:10.3]} 48. Rb8 {[%clk 0:00:18.4]}
48... e5 {[%clk 0:00:09.6]} 49. fxe5 {[%clk 0:00:18.2]} 49... fxe5 {[%clk
0:00:08.4]} 50. b7 {[%clk 0:00:18.3]} 50... Kg7 {[%clk 0:00:08.9]} 51. Ke3
{[%clk 0:00:17.9]} 51... Kh7 {[%clk 0:00:06.5]} 52. Kd3 {[%clk 0:00:18.1]} 52...
e4+ {[%clk 0:00:06.6]} 53. Ke3 {[%clk 0:00:17.7]} 53... Kg7 {[%clk 0:00:05.7]}
54. Kf4 {[%clk 0:00:18.3]} 54... Kh7 {[%clk 0:00:05.9]} 55. g5 {[%clk
0:00:18.6]} 55... Kg7 {[%clk 0:00:06.3]} 56. g6 {[%clk 0:00:17.7]} 56... Rb5
{[%clk 0:00:02.9]} 57. Kxe4 {[%clk 0:00:16.8]} 57... Rb6 {[%clk 0:00:03.3]} 58.
Kf5 {[%clk 0:00:16.5]} 58... Rb5+ {[%clk 0:00:03.5]} 59. Ke6 {[%clk 0:00:16.5]}
59... Rb6+ {[%clk 0:00:04.2]} 60. Kd7 {[%clk 0:00:16.1]} 60... Rb1 {[%clk
0:00:05]} 61. Kc6 {[%clk 0:00:15.8]} 61... Rc1+ {[%clk 0:00:05]} 62. Kd5 {[%clk
0:00:15.9]} 62... Rd1+ {[%clk 0:00:05.2]} 63. Ke4 {[%clk 0:00:15.9]} 63... Re1+
{[%clk 0:00:05.5]} 64. Kf5 {[%clk 0:00:15.7]} 64... Rb1 {[%clk 0:00:06.3]} 65.
Ke6 {[%clk 0:00:14]} 65... Re1+ {[%clk 0:00:06.2]} 66. Kd6 {[%clk 0:00:14]}
66... Rd1+ {[%clk 0:00:06.6]} 67. Kc5 {[%clk 0:00:14.1]} 67... Rc1+ {[%clk
0:00:07.2]} 68. Kb4 {[%clk 0:00:14.1]} 68... Rb1+ {[%clk 0:00:07.8]} 69. Kc3
{[%clk 0:00:14.5]} 69... Rb6 {[%clk 0:00:07.4]} 70. Kc4 {[%clk 0:00:13.6]} 70...
Rb1 {[%clk 0:00:07.9]} 71. Kc5 {[%clk 0:00:11.4]} 71... Rc1+ {[%clk 0:00:08]}
72. Kd6 {[%clk 0:00:11.1]} 72... Rd1+ {[%clk 0:00:08.3]} 73. Ke5 {[%clk
0:00:10.5]} 73... Re1+ {[%clk 0:00:08.4]} 74. Kf5 {[%clk 0:00:10.4]} 74... Rf1+
{[%clk 0:00:08.6]} 75. Kg5 {[%clk 0:00:10.4]} 75... Rg1+ {[%clk 0:00:09]} 76.
Kf4 {[%clk 0:00:10.6]} 76... Rf1+ {[%clk 0:00:09.4]} 77. Ke5 {[%clk 0:00:09.5]}
77... Re1+ {[%clk 0:00:09.1]} 78. Kd6 {[%clk 0:00:09.6]} 78... Rd1+ {[%clk
0:00:09.7]} 1/2-1/2

[Event "*** Titled Tuesday Blitz"]
[Site "Chess.com"]
[Date "2021.02.02"]
[Round "11"]
[White "Paralinch"]
[Black "Sippp"]
[Result "1-0"]
[WhiteElo "2906"]
[BlackElo "2777"]
[TimeControl "180+1"]
[EndTime "12:08:37 PST"]
[Termination "Paralinch won on time"]

1. e4 {[%clk 0:03:00.9]} 1... c5 {[%clk 0:02:59.2]} 2. Nf3 {[%clk 0:03:00.3]}
2... g6 {[%clk 0:02:59.2]} 3. c3 {[%clk 0:02:59.4]} 3... d5 {[%clk 0:02:58.7]}
4. exd5 {[%clk 0:02:58.8]} 4... Qxd5 {[%clk 0:02:58.4]} 5. d4 {[%clk 0:02:58.7]}
5... Bg7 {[%clk 0:02:58.5]} 6. Nbd2 {[%clk 0:02:59]} 6... cxd4 {[%clk
0:02:49.6]} 7. Bc4 {[%clk 0:02:58.7]} 7... Qd8 {[%clk 0:02:42.7]} 8. Nxd4 {[%clk
0:02:54.6]} 8... Nf6 {[%clk 0:02:38.3]} 9. O-O {[%clk 0:02:53.1]} 9... O-O
{[%clk 0:02:37.4]} 10. Re1 {[%clk 0:02:53.2]} 10... Nc6 {[%clk 0:02:25.4]} 11.
Nxc6 {[%clk 0:02:49.7]} 11... bxc6 {[%clk 0:02:25]} 12. Nf3 {[%clk 0:02:49.9]}
12... Nd5 {[%clk 0:02:20.4]} 13. Qe2 {[%clk 0:02:47.4]} 13... Re8 {[%clk
0:02:12.6]} 14. h3 {[%clk 0:02:40.4]} 14... e5 {[%clk 0:02:09.5]} 15. Bb3 {[%clk
0:02:31.1]} 15... Qc7 {[%clk 0:01:56.1]} 16. Ng5 {[%clk 0:02:21.6]} 16... a5
{[%clk 0:01:38.3]} 17. Qf3 {[%clk 0:02:13.1]} 17... h6 {[%clk 0:01:34.3]} 18.
Ne4 {[%clk 0:02:10.4]} 18... f5 {[%clk 0:01:31.7]} 19. Nc5 {[%clk 0:02:07]}
19... e4 {[%clk 0:01:30.9]} 20. Qg3 {[%clk 0:02:05]} 20... Qxg3 {[%clk
0:01:25.8]} 21. fxg3 {[%clk 0:02:05.9]} 21... Bf8 {[%clk 0:01:24.6]} 22. Be3
{[%clk 0:02:03.4]} 22... Kh7 {[%clk 0:00:57.7]} 23. Bxd5 {[%clk 0:01:57.2]}
23... cxd5 {[%clk 0:00:58.6]} 24. Red1 {[%clk 0:01:57.3]} 24... Bxc5 {[%clk
0:00:55.7]} 25. Bxc5 {[%clk 0:01:58.2]} 25... Be6 {[%clk 0:00:55.6]} 26. a4
{[%clk 0:01:58.1]} 26... Rec8 {[%clk 0:00:43.5]} 27. b4 {[%clk 0:01:57.8]} 27...
g5 {[%clk 0:00:43]} 28. Rd2 {[%clk 0:01:24.5]} 28... Kg6 {[%clk 0:00:41.8]} 29.
Rf2 {[%clk 0:01:22.6]} 29... Rc6 {[%clk 0:00:37.6]} 30. Bd4 {[%clk 0:01:04.8]}
30... Rc4 {[%clk 0:00:34.4]} 31. b5 {[%clk 0:01:04.7]} 31... Bd7 {[%clk
0:00:23.6]} 32. h4 {[%clk 0:01:00.6]} 32... Rac8 {[%clk 0:00:16.2]} 33. Rb2
{[%clk 0:00:57.2]} 33... f4 {[%clk 0:00:14.7]} 34. b6 {[%clk 0:00:55.3]} 34...
Rb8 {[%clk 0:00:12.9]} 35. b7 {[%clk 0:00:53.5]} 35... Bc6 {[%clk 0:00:12.7]}
36. gxf4 {[%clk 0:00:53.5]} 36... gxf4 {[%clk 0:00:12.4]} 37. Rab1 {[%clk
0:00:52.9]} 37... Kf5 {[%clk 0:00:07.2]} 38. Rb6 {[%clk 0:00:45.1]} 38... e3
{[%clk 0:00:05.7]} 39. Kf1 {[%clk 0:00:39]} 39... Ke4 {[%clk 0:00:05.5]} 40. Ke2
{[%clk 0:00:39.3]} 40... h5 {[%clk 0:00:03.5]} 41. R1b2 {[%clk 0:00:33.5]} 41...
Bd7 {[%clk 0:00:03.6]} 42. Ke1 {[%clk 0:00:18.5]} 42... Kd3 {[%clk 0:00:02.9]}
43. Rd6 {[%clk 0:00:15.8]} 43... Bc6 {[%clk 0:00:02.9]} 44. Rb6 {[%clk
0:00:10.2]} 44... Rxb7 {[%clk 0:00:03.1]} 45. Rdxc6 {[%clk 0:00:09]} 45... Rxc6
{[%clk 0:00:02.4]} 46. Rxb7 {[%clk 0:00:09.6]} 46... Rc4 {[%clk 0:00:03.1]} 47.
Rb1 {[%clk 0:00:06.3]} 47... Rxa4 {[%clk 0:00:03.2]} 48. Rd1+ {[%clk 0:00:06.9]}
48... Ke4 {[%clk 0:00:02.7]} 49. Bf6 {[%clk 0:00:05.7]} 49... Ra2 {[%clk
0:00:03.2]} 50. Rd4+ {[%clk 0:00:05]} 50... Kf5 {[%clk 0:00:03.6]} 51. Bg5
{[%clk 0:00:05.6]} 51... Rf2 {[%clk 0:00:02.8]} 52. Rxd5+ {[%clk 0:00:05]} 52...
Kg4 {[%clk 0:00:03.2]} 53. Rd4 {[%clk 0:00:05.4]} 53... Kg3 {[%clk 0:00:03.2]}
54. c4 {[%clk 0:00:05]} 54... a4 {[%clk 0:00:01.6]} 55. c5 {[%clk 0:00:04.6]}
55... a3 {[%clk 0:00:02.5]} 56. Ra4 {[%clk 0:00:03.7]} 56... a2 {[%clk
0:00:02.8]} 57. c6 {[%clk 0:00:03.9]} 57... Rc2 {[%clk 0:00:02.8]} 58. Bxf4+
{[%clk 0:00:03.6]} 58... Kxg2 {[%clk 0:00:03]} 59. Bxe3 {[%clk 0:00:04.1]} 59...
Rxc6 {[%clk 0:00:02.5]} 60. Rxa2+ {[%clk 0:00:04]} 60... Kf3 {[%clk 0:00:03.3]}
61. Bg5 {[%clk 0:00:04.5]} 61... Re6+ {[%clk 0:00:03.6]} 62. Kf1 {[%clk
0:00:04.6]} 62... Rb6 {[%clk 0:00:04.1]} 63. Ra3+ {[%clk 0:00:04.4]} 63... Kg4
{[%clk 0:00:04.2]} 64. Kf2 {[%clk 0:00:04.8]} 64... Rb2+ {[%clk 0:00:04.5]} 65.
Ke3 {[%clk 0:00:05.2]} 65... Rg2 {[%clk 0:00:04.9]} 66. Ra4+ {[%clk 0:00:05.1]}
66... Kh3 {[%clk 0:00:04.9]} 67. Rd4 {[%clk 0:00:02.8]} 67... Rg3+ {[%clk
0:00:04.6]} 68. Ke4 {[%clk 0:00:03.2]} 68... Rg1 {[%clk 0:00:04.2]} 69. Ke5
{[%clk 0:00:03.5]} 69... Rf1 {[%clk 0:00:03.2]} 70. Rf4 {[%clk 0:00:03.3]} 70...
Ra1 {[%clk 0:00:02.7]} 71. Kf5 {[%clk 0:00:03.8]} 71... Ra6 {[%clk 0:00:02.8]}
72. Rf3+ {[%clk 0:00:03.9]} 72... Kg2 {[%clk 0:00:02.6]} 73. Re3 {[%clk
0:00:04.8]} 1-0